Cogmind - Beta 17 @@@ ROGUE MODE // 2026.07.07 @ 14:05:35 Player: ldi (hl). (hl) Result: Destroyed by 0G-YJ8(R) with Subdweller Laser Performance ------------- Evolutions (0) 0 Regions Visited (2) 400 Robots Destroyed (9) 45 Value Destroyed (275) 275 Prototype IDs (2) 40 Alien Tech Used (0) 0 Bonus (0) 0 TOTAL SCORE: 760 Bonus ------- None Cogmind --------- Core Integrity 0/250 Matter 233/300 Energy 98/100 System Corruption 0% Temperature Cool (6) Movement Core (50) Location -10/Subcaves Parts ------- > --- POWER (1) -------- (None) > --- PROPULSION (2) --- (None) > --- UTILITY (2) ------ (None) > --- WEAPON (2) ------- (None) > --- INVENTORY (5) ---- Disposable Heat Sink Small Storage Unit Peak State ------------ > --- POWER ------------ Ion Engine > --- PROPULSION ------- Aluminum Leg Aluminum Leg > --- UTILITY ---------- Small Storage Unit Subdweller Optics > --- WEAPON ----------- Assault Rifle Battle Cannon > --- INVENTORY -------- Light Ion Engine Spiked Treads Disposable Heat Sink Subdweller Optics Assault Rifle Battle Rifle [Rating: 10] Favorites ----------- Power Ion Engine Engine Ion Engine Propulsion Aluminum Leg Treads Spiked Treads Leg Aluminum Leg Utility Small Storage Unit Device Subdweller Optics Storage Small Storage Unit Weapon Assault Rifle Ballistic Gun Assault Rifle Ballistic Cannon Battle Cannon Launcher Subdweller Shrapnel Launcher Build | -11 -10 -10 ------- Run | Yrd Mat Sub Slots Evolved . | . . . Power . | . . . Propulsion . | . . . Utility . | . . . Weapon . | . . . Parts Attached 14 | 6 . 8 Power 2 | 1 . 1 Engine 2 | 1 . 1 Core . | . . . Reactor . | . . . Propulsion 3 | 2 . 1 Treads 1 | . . 1 Leg 2 | 2 . . Wheel . | . . . Hover . | . . . Flight . | . . . Utility 4 | 1 . 3 Device 3 | . . 3 Storage 1 | 1 . . Processor . | . . . Hackware . | . . . Protection . | . . . Artifact . | . . . Weapon 5 | 2 . 3 Energy Gun . | . . . Energy Cannon . | . . . Ballistic Gun 3 | 2 . 1 Ballistic Cannon 1 | . . 1 Launcher 1 | . . 1 Special Weapon . | . . . Impact Weapon . | . . . Slashing Weapon . | . . . Piercing Weapon . | . . . Special Melee Weapon . | . . . Unidentified Prototypes . | . . . Parts Lost 11 | . . 11 Power 2 | . . 2 Propulsion 3 | . . 3 Utility 1 | . . 1 Weapon 5 | . . 5 Highest Loss Streak 7 | . . 7 To Critical Strikes . | . . . Average Backups 3 | . 1 4 Power . | . 1 . Propulsion . | . . . Utility 1 | . . 1 Weapon 1 | . . 1 Tool/Special . | . . . Unused Backups 1 | . . 1 Power . | . . . Propulsion . | . . . Utility 1 | . . 1 Weapon . | . . . Tool/Special . | . . . Average Slot Usage (%) 89 | . 85 89 Engine 11 | . 14 11 Treads 2 | . . 2 Leg 23 | . 28 22 Device 11 | . . 11 Storage 13 | . 14 13 Ballistic Gun 20 | . 28 19 Ballistic Cannon 6 | . . 6 Peak Build Rating 10 | 6 6 10 Average Rating 8 | 3 6 8 On Entrance 4 | . 6 6 Avg Prop Armor Cover (%) 7 | . . 7 Naked Turns 38 | . . 38 Heaviest Build 17 | 14 14 17 Greatest Support 20 | 20 20 20 Greatest Overweight (x) 1 | . . 1 Average Overweight (x) . | . . . Largest Inventory Capacity 8 | 8 8 8 Average Capacity 7 | 6 8 7 Most Carried 8 | 2 1 8 Average Carried 3 | . 1 4 Final Capacity 8 | 8 8 5 Final Carried 2 | 1 1 2 Class Distribution -------------------- 100% | Mutant Dominant Class ---------------- Mutant | -10/Materials Mutant | -10/Subcaves Resources | -11 -10 -10 ----------- Run | Yrd Mat Sub Matter Collected 467 | 194 . 273 Remotely . | . . . Salvage Created 238 | . . 238 Parts 16 | . . 16 Haulers Intercepted . | . . . Recyclers Shooed . | . . . Parts Field Recycled . | . . . Retrieved Matter . | . . . Parts Self-Destructed 9 | . . 9 Prevented . | . . . Parts Restored . | . . . Kills | -11 -10 -10 ------- Run | Yrd Mat Sub Combat Hostiles Destroyed 9 | . . 9 Guns 3 | . . 3 Cannons 5 | . . 5 AOE 1 | . . 1 Classes Destroyed 3 | . . 3 Swarmer 3 | . . 3 Sentry 1 | . . 1 Subdweller 5 | . . 5 Best Kill Streak 3 | . . 3 Combat Bots Only 3 | . . 3 Max Kills in Single Turn 1 | . . 1 Gunslinging . | . . . Exploded 1 | . . 1 Melee . | . . . Uniques/NPCs Destroyed . | . . . Combat | -11 -10 -10 -------- Run | Yrd Mat Sub Hostile Shots Fired 123 | . . 123 Missed 36 | . . 36 Hits 87 | . . 87 Projectile 87 | . . 87 Critical Strikes 2 | . . 2 Damage Taken 1344 | . . 1344 Core 262 | . . 262 Absorbed by Shields . | . . . Core Remaining (%) 100 | 100 . . Volleys Fired 29 | . . 29 Largest 2 | . . 2 Hottest 65 | . . 65 Shots Fired 56 | . . 56 Gun 38 | . . 38 Cannon 16 | . . 16 Launcher 2 | . . 2 Special . | . . . Kinetic 56 | . . 56 Thermal . | . . . Explosive . | . . . Electromagnetic . | . . . Robot Hit Streak 13 | . . 13 Robot Miss Streak 3 | . . 3 Penetration Max . | . . . Secondary Targets . | . . . Shots Hit Robots 42 | . . 42 Core Hits 14 | . . 14 Critical Kills 1 | . . 1 Critical Parts Destroyed . | . . . Critical Strikes 2 | . . 2 Destroy 1 | . . 1 Blast 1 | . . 1 Melee Attacks . | . . . Impact . | . . . Slashing . | . . . Piercing . | . . . Sneak Attacks . | . . . Combat Hostiles . | . . . Follow-up Attacks . | . . . Damage Inflicted 1054 | . . 1054 Guns 350 | . . 350 Cannons 340 | . . 340 Explosions 364 | . . 364 Melee . | . . . Ramming . | . . . Kinetic 1054 | . . 1054 Thermal . | . . . Explosive . | . . . Electromagnetic . | . . . Impact . | . . . Slashing . | . . . Piercing . | . . . Highest Corruption . | . . . Average Corruption . | . . . Corruption Purged . | . . . Corruption Blocked . | . . . Overload Shots . | . . . Overflow Damage 77 | . . 77 Projectiles 11 | . . 11 Explosions 66 | . . 66 Melee . | . . . Knockbacks 7 | . . 7 Impact . | . . . Kinetic 5 | . . 5 Secondary 2 | . . 2 Self-Inflicted Damage 106 | . . 106 Shots 2 | . . 2 Rammed . | . . . Targets Rammed . | . . . Kicked . | . . . Crushed . | . . . Highest Temperature . | . . . Average Temperature . | . . . Received Heat Transfer 243 | . . 243 Siege Activations . | . . . Martial Activations . | . . . Shielding Activations . | . . . Robots Disrupted . | . . . Combat Hostiles . | . . . Robots Corrupted . | . . . Combat Hostiles . | . . . Parts Fried . | . . . Impact Corruptions . | . . . Robots Melted . | . . . Combat Hostiles . | . . . Parts Melted . | . . . Heat Transferred . | . . . Parts Sabotaged . | . . . Parts Stolen . | . . . Parts Stripped . | . . . Power Chain Reactions . | . . . Alert | -11 -10 -10 ------- Run | Yrd Mat Sub Maximum Alert Level . | . . . Low Security (%) 100 | 100 100 . Level 1 . | . . . Level 2 . | . . . Level 3 . | . . . Level 4 . | . . . Level 5 . | . . . High Security . | . . . Max Security . | . . . Peak Influence 18 | . 18 . Initial . | . . . Average 3 | . 9 . Influence Increases 188 | . 18 170 Destroy 0b10 Robot/C 80 | . . 80 Successful Hack 18 | . 18 . Lose Combat Pursuer 90 | . . 90 Influence Decreases 188 | . 18 170 Time Decay 98 | . 18 80 Lost Part 90 | . . 90 Squads Dispatched 1 | . 1 . Investigation 1 | . 1 . Extermination . | . . . Reinforcement . | . . . Assault . | . . . Garrison . | . . . Intercept . | . . . Searches Triggered . | . . . Construction Impeded . | . . . Haulers Reinforced . | . . . Active Scanning Responses . | . . . Cargo Convoy Interrupts . | . . . Stealth | -11 -10 -10 --------- Run | Yrd Mat Sub Distress Signals . | . . . Communications Jammed . | . . . Distress Signals . | . . . Times Spotted 19 | . . 19 Peak Tracking Total 6 | . . 6 Tactical Retreats 3 | . . 3 Traps | -11 -10 -10 ------- Run | Yrd Mat Sub Traps Triggered . | . . . Indirectly . | . . . Trap Hack Attempts . | . . . Triggered . | . . . Disarmed . | . . . Reprogrammed . | . . . Reused . | . . . Traps Extracted . | . . . Installed . | . . . Triggered . | . . . Machines | -11 -10 -10 ---------- Run | Yrd Mat Sub Machines Disabled . | . . . Max in Single Turn . | . . . Machines Repaired . | . . . Machines Dismantled . | . . . Machines Sabotaged . | . . . Overloaded Fab Kills . | . . . Hacking | -11 -10 -10 --------- Run | Yrd Mat Sub Machines Accessed 1 | . 1 . Terminals 1 | . 1 . Fabricators . | . . . Repair Stations . | . . . Recycling Units . | . . . Scanalyzers . | . . . Garrison Access . | . . . Total Hacks 6 | . 6 . Successful 3 | . 3 . Failed 3 | . 3 . Catastrophic . | . . . Database Lockouts . | . . . Manual 4 | . 4 . Terminals 6 | . 6 . Fabricators . | . . . Repair Stations . | . . . Recycling Units . | . . . Scanalyzers . | . . . Garrison Access . | . . . Terminal Hacks 3 | . 3 . Prototype ID Bank 1 | . 1 . Branch Access Points 1 | . 1 . Zone Layout 1 | . 1 . Fabricator Hacks . | . . . Repair Station Hacks . | . . . Recycling Unit Hacks . | . . . Scanalyzer . | . . . Garrison Access Hacks . | . . . Unauthorized Hacks . | . . . Terminals . | . . . Fabricators . | . . . Repair Stations . | . . . Recycling Units . | . . . Scanalyzers . | . . . Garrison Access . | . . . Data Cores Recovered . | . . . Used . | . . . Hacking Detections 1 | . 1 . Full Trace Events 1 | . 1 . Feedback Events . | . . . Feedback Blocked . | . . . Robot Schematics Acquired . | . . . Robots Built . | . . . Authchips . | . . . Time . | . . . Total Robot Build Rating . | . . . Part Schematics Acquired . | . . . Parts Built . | . . . Authchips . | . . . Time . | . . . Total Part Build Rating . | . . . Part Studies Acquired . | . . . Parts Repaired . | . . . Time . | . . . Parts Recycled . | . . . Recycled Matter . | . . . Retrieved Matter . | . . . Retrieved Components . | . . . Parts Scanalyzed . | . . . Part Schematics Acquired . | . . . Parts Damaged . | . . . Bothacking | -11 -10 -10 ------------ Run | Yrd Mat Sub Used RIF Installer . | . . . Robots Hacked . | . . . Non-combat . | . . . Combat . | . . . Robot Hacks Applied . | . . . Relay Couplers Released . | . . . Fabnet Peak Effective % . | . . . Robots Rewired . | . . . Allies Hacked . | . . . Hacks Repelled . | . . . Allies | -11 -10 -10 -------- Run | Yrd Mat Sub Total Allies . | . . . Largest Group . | . . . Highest-Rated Group . | . . . Highest-Rated Ally . | . . . Total Orders . | . . . Ally Attacks . | . . . Total Damage . | . . . Kills . | . . . Allies Corrupted . | . . . Allies Melted . | . . . Intel | -11 -10 -10 ------- Run | Yrd Mat Sub Active Infowar (turns) 953 | . . 953 Optics 953 | . . 953 Robot Analysis Total . | . . . Derelict Logs Recovered 2 | . . 2 Drone Launches . | . . . Drone Recoveries . | . . . Exploration | -11 -10 -10 ------------- Run | Yrd Mat Sub Turns Passed 1229 | 62 44 1123 Spaces Moved 915 | 45 37 833 Core 79 | 3 . 76 Treads 90 | . . 90 Legs 746 | 42 37 667 Wheels . | . . . Hover . | . . . Flight . | . . . Fastest Speed 50 | 50 120 50 Average Speed 118 | 115 120 118 Slowest Speed 190 | 120 120 190 Overloaded Moves . | . . . Propulsion Burnouts . | . . . Robots Hopped . | . . . Potential Cave-ins . | . . . Cave-ins Triggered . | . . . Exploration Rate (%) 19 | 4 9 46 Regions Visited 2 Branch Regions 1 Pre-discovered Areas . | . . . Known Exits Taken . | . . . Unknown Exits Taken 2 | 1 1 . Scrap Searched 1 | . . 1 Spaces Dug . | . . . Terrain Destroyed 39 | . . 39 Melee . | . . . Projectile . | . . . AOE 39 | . . 39 Terrain Rammed . | . . . Walls Destroyed . | . . . Machines Disabled . | . . . Actions | -11 -10 -10 --------- Run | Yrd Mat Sub Total 1006 | 52 36 918 Wait 35 | . . 35 Move 913 | 44 36 833 Hop . | . . . Pick Up 9 | 2 . 7 Fast Attach 6 | 5 . 1 Attach 8 | 1 . 7 Detach 3 | . . 3 Swap 1 | . . 1 Drop 2 | . . 2 Fire 29 | . . 29 Melee . | . . . Ram . | . . . Kick . | . . . Crush . | . . . Escape Stasis . | . . . Rewire . | . . . Trap . | . . . Miscellaneous . | . . . Route ------- -11/Scrapyard -10/Materials (discovered 3 exits: Min x2 / [*Sub]) -10/Subcaves (discovered 1 exit: [*Rec]) History --------- Turn | Location | Event 3 | -11/Scrapyard | Discovered new exit (range 16) 63 | -11/Scrapyard | Entered Materials 68 | -10/Materials | Identified exit to Mines 105 | -10/Materials | Discovered new exit (range 2) 107 | -10/Materials | Entered Subcaves 108 | -10/Subcaves | Approached by a straggling Scientist 307 | -10/Subcaves | Build established: Mutant 381 | -10/Subcaves | Learned Materials emergency access door positions 394 | -10/Subcaves | Shifting Twisted Machinery released Battle Cannon 398 | -10/Subcaves | Shifting Twisted Machinery released Spk. Treads 421 | -10/Subcaves | A swath of the cavern ceiling suddenly collapsed 658 | -10/Subcaves | Learned Materials trap positions 1042 | -10/Subcaves | Discovered new exit (range 8) 1073 | -10/Subcaves | Lost 4 parts (1p2n1w) 1117 | -10/Subcaves | Ambushed by Subdwellers from Twisted Machinery 1162 | -10/Subcaves | Disturbed a concealed Subdweller 1188 | -10/Subcaves | Core integrity fell below 50% 1222 | -10/Subcaves | Lost 7 parts (1p1n1u4w) 1228 | -10/Subcaves | Core integrity fell below 20% 1230 | -10/Subcaves | Destroyed by 0G-YJ8(R) with Subdweller Laser Last Messages --------------- 01117_ 8I-CNK(R) emerges from the Twisted Machinery. 01150_ Subatomizers dissect the Disposable Heat Sink. 01160_ Assault Rifle destroyed. 01162_ VY-PWV(R) angrily emerges from the Twisted Machinery. 01168_ Searching scrap... 01168_ Found Battle Rifle. 01168_ Found 40 Matter. 01180_ VY-PWV(R) affixes Scrap Shield Fragment to Scrap Shield. 01182_ Assault Rifle destroyed. 01183_ Spk. Treads destroyed. 01185_ Lgt. Ion Engine destroyed. 01185_ Destroyed Lgt. Ion Engine. 01187_ 8I-CNK(R) destroyed. 01187_ Destroyed Sub. Laser. 01187_ Sub. Optics destroyed. 01187_ Destroyed Sub. Optics. 01187_ Sub. Shrapnel Launcher destroyed. 01187_ Destroyed Sub. Shrapnel Launcher. 01191_ Battle Rifle destroyed. 01220_ HG-LOR(R): "SUBHATE!" Map ----- +----------------------------------------------------+ | ?????????????????????????????????????????????? | | ?????????????????????????????????????????????? | | ?????????????????????????????????????????????? | | ?????????????????????????????????????????????? | | ?????????????????????????????????????????????? | | ?????????????????????????????????????????????? | | ?????????????????????????????????????????????? | | ?????????????????????????????????????????????? | | ?????????????????????????????????????????????? | | ?????????????????????????????????????????????? | | ???????????????????????? ???????????????????? | | ???????????????????????? ???????????????????? | | ???????????????????????? ???????????????????? | | ???????????????????????# ???????????????????? | | ???????????????????????# ???????????????????? | | ??????????????????????? ???????????????????? | | ???????????????????????# #??????????????????? | | ???????????????????????# ??????????????????? | | ???????????????????????# #??????????????????? | | ???????????????????????# ??????????????????? | | ???????????????????????# #??????????????????? | | ??????????????????????? ??????????????????? | | ??????????????????????## #??????????????????? | | ?????????????#?????##?# ##?????????????????? | | ????????# ## ??### *#! #?????????????????? | | ????????# [!% =@#??????????????????? | | ????????# ??## ### ###????????????????? | | ?????##?# ???????# ##???????????????? | | ?????#"## ????????## # #???????????????? | | ????##""""""" ??#####??# #???????????????? | | ????# """"#?## #### ## #??????????????? | | ????#" =%* #?# ## #??????????????? | | ????# " ### #??????????????? | | ?????????# # #??????????????? | | ??????#### "" """" #??????????????? | | ??????# "" ###""R ##??????????????? | | ??????## " ## ##?##" #???????????????? | | ?????### ###" #???#" R" ###???????????????? | | ????## ##" #???""""" #?????????????????? | | ????# " "" ##???""" #?????????????????? | | ##### " "" #????? #?????????????????? | | # # "" ## #" #???? #?????????????????? | | "######## ##????# ?????????????????? | | ""#??????# #??????? ?????????????????? | | # ##??????# ???????## ?????????????????? | | #####???????# #???????????????????????????? | | ##???????????###?????????????????????????????? | | ?????????????????????????????????????????????? | | ?????????????????????????????????????????????? | | ?????????????????????????????????????????????? | +----------------------------------------------------+ Best States ------------- Heat Dissipation 25 Energy Generation 10 Energy Capacity 250 Matter Stores 300 Matter Capacity 300 Sight Range 21 Terrain Scan Density 10 Evasion (%) 55 Recoil Reduction 1 Item Schematics ----------------- None Robot Schematics ------------------ None Fabricated ------------ Nothing Repaired ---------- Nothing Studied --------- None Alien Tech Used ----------------- None Achievements -------------- None Challenges ------------ None Game ------ Seed ChargeAntimatterChip Manual? 0 Play Time 00:11:15 Cumulative 662.7 hours Start 2026.07.07 @ 13:42:10 End 2026.07.07 @ 14:05:35 Sessions 2 Manual Loads 0 Difficulty Rogue Special Mode None Game No. 436 Rogue 436 Adventurer 0 Explorer 0 Win Type - Total 38 Types 25/1/6/6/0/0/0/0/0/0 Lore% 72 Gallery% 69 Achievement% 52 Wizard Run 0 Options --------- Layout 0 ASCII 1 Keyboard 0 Movement Numpad Keybinds 0 Fullscreen 2 Font 24/Smallcaps Map View 76x50 Zoom Use 0% Tactical HUD 1 Map Filters NONE Filters NONE Steam 1 RUN: 6c58475c-ac8f-4eee-9152-8fb182172079